fUSD/lending_fUSD_20240607
["ID","MTS","AMOUNT","RATE_DAILY","PERIOD"]
[328779038,1717785048403,-150.0,0.00029717,2]
[328779043,1717785048413,-155.28933808,0.00029719,2]
[328779048,1717785048422,-150.0,0.00029736,2]
[328779052,1717785048432,-301.01734805,0.00029741,2]
[328779056,1717785048441,-151.37667519,0.0002975,2]
[328779059,1717785048451,-526.78,0.00029753,2]
[328779064,1717785048461,-150.0,0.00029755,2]
[328779067,1717785048470,-155.75987116,0.00029759,2]
[328779070,1717785048480,-500.0,0.0002976,2]
[328779073,1717785048490,-200.0,0.0002976,2]
[328779076,1717785048499,-162.00616074,0.00029763,2]
[328779079,1717785048509,-211.43132247,0.00029763,2]
[328779082,1717785048519,-195.80265682,0.00029763,2]
[328779085,1717785048529,-191.8400987,0.00029763,5]
[328779087,1717785048538,-1000.0,0.00029763,2]
[328779090,1717785048548,-10000.0,0.00029763,2]
[328779092,1717785048557,-150.0,0.00029765,2]
[328779094,1717785048567,-1042.0,0.0002977,15]
[328779096,1717785048576,-151.88555892,0.00029778,2]
[328779098,1717785048586,-154.42,0.0002978,15]
[328779100,1717785048595,-1042.0,0.0002978,15]
[328779102,1717785048605,-800.0,0.00029784,2]
[328779104,1717785048614,-150.5,0.0002979,15]
[328779106,1717785048624,-178.36,0.0002979,15]
[328779108,1717785048637,-1042.0,0.0002979,15]
[328779110,1717785048646,-150.0,0.00029792,2]
[328779112,1717785048655,-500.0,0.00029792,4]
[328779114,1717785048666,-500.0,0.00029792,4]
[328779116,1717785048675,-500.0,0.00029792,4]
[328779117,1717785048685,-150.0,0.00029797,2]
[328779118,1717785048695,-514.19340904,0.00029797,2]
[328779119,1717785048704,-500.0,0.000298,2]
[328779120,1717785048713,-500.0,0.000298,2]
[328779121,1717785048722,-500.0,0.000298,2]
[328779122,1717785048731,-500.0,0.000298,2]
[328779123,1717785048741,-500.0,0.000298,2]
[328779124,1717785048751,-500.0,0.000298,2]
[328779125,1717785048760,-500.0,0.000298,2]
[328779126,1717785048769,-500.0,0.000298,2]
[328779127,1717785048778,-500.0,0.000298,2]
[328779128,1717785048787,-500.0,0.000298,2]
[328779129,1717785048796,-500.0,0.000298,2]
[328779130,1717785048806,-500.0,0.000298,2]
[328779131,1717785048816,-500.0,0.000298,2]
[328779132,1717785048825,-500.0,0.000298,2]
[328779133,1717785048834,-520.41,0.000298,2]
[328779134,1717785048844,-325.28,0.000298,2]
[328779135,1717785048854,-2110.0,0.000298,15]
[328779136,1717785048863,-150.0,0.000298,2]
[328779137,1717785048872,-1042.0,0.000298,15]
[328779138,1717785048887,-2294.0,0.000298,10]
[328779139,1717785048896,-162.00616074,0.00029809,2]
[328779140,1717785048905,-1042.0,0.0002981,15]
[328779141,1717785048915,-1042.0,0.0002982,15]
[328779142,1717785048924,-150.0,0.00029825,2]
[328779143,1717785048933,-944.0,0.0002983,15]
[328779144,1717785048942,-155.28933808,0.00029833,2]
[328779145,1717785048951,-155.28933808,0.00029838,2]
[328779146,1717785048961,-500.0,0.00029838,3]
[328779147,1717785048970,-944.0,0.0002984,15]
[328779148,1717785048979,-158.18143124,0.0002984,15]
[328779151,1717785049347,-785.81856876,0.0002984,15]
[328779152,1717785049357,-1042.0,0.00029842,15]
[328779153,1717785049371,-500.0,0.00029847,3]
[328779154,1717785049387,-219.1,0.0002985,15]
[328779155,1717785049397,-944.0,0.0002985,15]
[328779156,1717785049410,-944.0,0.0002985,15]
[328779157,1717785049419,-150.0,0.00029851,2]
[328779158,1717785049430,-156.58063653,0.00029851,2]
[328779159,1717785049440,-1042.0,0.00029852,15]
[328779160,1717785049451,-150.5,0.00029853,15]
[328779161,1717785049461,-150.5,0.00029853,15]
[328779162,1717785049471,-230.23996496,0.00029853,2]
[328779163,1717785049481,-162.00616074,0.00029854,2]
[328779164,1717785049492,-441.05466901,0.00029856,3]
[328779165,1717785049505,-58.94533099,0.00029856,3]
[328779166,1717785049514,-150.0,0.00029862,10]
[328779167,1717785049524,-150.0,0.00029862,10]
[328779168,1717785049534,-500.0,0.00029862,4]
[328779169,1717785049544,-500.0,0.00029862,4]
[328779170,1717785049553,-500.0,0.00029862,4]
[328779171,1717785049562,-500.0,0.00029862,4]
[328779172,1717785049572,-500.0,0.00029862,4]
[328779173,1717785049581,-150.0,0.00029862,2]
[328779174,1717785049591,-150.0,0.00029862,7]
[328779175,1717785049600,-288.21943686,0.00029863,4]
[328779176,1717785049611,-211.78056314,0.00029863,4]
[328779177,1717785049620,-500.0,0.00029863,4]
[328779178,1717785049636,-415.70788834,0.00029863,4]
[328779179,1717785049646,-500.0,0.00029863,4]
[328779180,1717785049655,-500.0,0.00029863,4]
[328779181,1717785049669,-500.0,0.00029863,4]
[328779182,1717785049678,-505.77708614,0.00029863,4]
[328779183,1717785049688,-500.0,0.00029863,4]
[328779184,1717785049698,-500.0,0.00029863,4]
[328779185,1717785049707,-500.0,0.00029863,4]
[328779186,1717785049717,-500.0,0.00029863,4]
[328779187,1717785049727,-500.0,0.00029863,4]
[328779188,1717785049738,-501.84010497,0.00029863,4]
[328779189,1717785049749,-500.0,0.00029863,4]
[328779190,1717785049758,-500.0,0.00029863,4]
[328779191,1717785049767,-500.0,0.00029863,4]
[328779192,1717785049778,-500.0,0.00029863,4]
[328779193,1717785049788,-500.0,0.00029863,4]
[328779194,1717785049798,-505.76795888,0.00029863,4]
[328779195,1717785049808,-500.0,0.00029863,4]
[328779196,1717785049818,-500.0,0.00029863,4]
[328779197,1717785049827,-500.0,0.00029863,4]
[328779198,1717785049837,-624.58,0.00029863,4]
[328779199,1717785049847,-500.0,0.00029863,4]
[328779200,1717785049857,-500.0,0.00029863,4]
[328779201,1717785049867,-500.0,0.00029863,4]
[328779202,1717785049878,-500.0,0.00029863,4]
[328779203,1717785049891,-509.88930687,0.00029863,4]
[328779204,1717785049900,-506.5575274,0.00029863,4]
[328779205,1717785049909,-604.99526723,0.00029863,4]
[328779206,1717785049918,-500.0,0.00029863,4]
[328779207,1717785049931,-500.0,0.00029863,4]
[328779208,1717785049940,-500.0,0.00029863,4]
[328779209,1717785049951,-504.64019245,0.00029863,4]
[328779210,1717785049961,-502.36527231,0.00029863,4]
[328779211,1717785049972,-500.0,0.00029863,4]
[328779212,1717785049982,-500.0,0.00029863,4]
[328779213,1717785049991,-500.0,0.00029863,4]
[328779214,1717785050001,-500.0,0.00029863,4]
[328779215,1717785050010,-562.62181105,0.00029863,4]
[328779216,1717785050022,-500.0,0.00029863,4]
[328779217,1717785050032,-508.79321343,0.00029863,4]
[328779218,1717785050042,-518.45794289,0.00029863,4]
[328779219,1717785050052,-2665.0656599,0.00029863,4]
[328779220,1717785050070,-2482.37958495,0.00029863,4]
[328779221,1717785050080,-500.0,0.00029863,4]
[328779222,1717785050091,-500.0,0.00029863,4]
[328779223,1717785050100,-500.0,0.00029863,4]
[328779224,1717785050110,-500.0,0.00029863,4]
[328779225,1717785050120,-506.19,0.00029863,4]
[328779226,1717785050135,-500.0,0.00029863,4]
[328779227,1717785050145,-500.0,0.00029863,4]
[328779228,1717785050154,-523.28761461,0.00029863,4]
[328779229,1717785050164,-72.95388844,0.00029863,4]
[328779230,1717785050177,-427.04611156,0.00029863,4]
[328779231,1717785050186,-500.0,0.00029863,4]
[328779232,1717785050196,-500.0,0.00029863,4]
[328779233,1717785050206,-500.0,0.00029863,4]
[328779234,1717785050215,-500.70475257,0.00029863,4]
[328779235,1717785050226,-500.0,0.00029863,4]
[328779236,1717785050236,-500.0,0.00029863,4]
[328779237,1717785050246,-500.0,0.00029863,4]
[328779238,1717785050256,-373.14712427,0.00029863,4]
[328779239,1717785050266,-307.3990458,0.00029863,4]
[328779240,1717785050276,-500.0,0.00029863,4]
[328779241,1717785050286,-198.59995664,0.00029863,4]
[328779242,1717785050296,-500.0,0.00029863,4]
[328779243,1717785050307,-500.0,0.00029863,4]
[328779244,1717785050316,-500.0,0.00029863,4]
[328779245,1717785050326,-500.0,0.00029863,4]
[328779246,1717785050335,-500.0,0.00029863,4]
[328779247,1717785050346,-165.4,0.00029863,4]
[328779248,1717785050356,-500.0,0.00029863,4]
[328779249,1717785050369,-500.0,0.00029863,4]
[328779250,1717785050382,-500.0,0.00029863,4]
[328779251,1717785050392,-503.49079347,0.00029863,4]
[328779252,1717785050407,-500.0,0.00029863,4]
[328779253,1717785050416,-500.0,0.00029863,4]
[328779254,1717785050426,-500.0,0.00029863,4]
[328779255,1717785050436,-500.0,0.00029863,4]
[328779256,1717785050446,-500.0,0.00029863,4]
[328779257,1717785050457,-500.0,0.00029863,4]
[328779258,1717785050467,-500.0,0.00029863,4]
[328779259,1717785050476,-265.67537508,0.00029863,4]
[328779260,1717785050486,-500.0,0.00029863,4]
[328779261,1717785050496,-500.0,0.00029863,4]
[328779262,1717785050505,-500.0,0.00029863,4]
[328779263,1717785050516,-500.0,0.00029863,4]
[328779264,1717785050525,-547.27235819,0.00029863,4]
[328779265,1717785050535,-430.36022653,0.00029863,4]
[328779266,1717785050545,-500.0,0.00029863,4]
[328779267,1717785050555,-216.21273135,0.00029863,4]
[328779268,1717785050564,-500.0,0.00029863,4]
[328779269,1717785050574,-458.89663504,0.00029863,4]
[328779270,1717785050899,-564.5050207,0.00015,2]
[328779271,1717785050910,-2070.29715607,0.00017022,2]
[328779272,1717785050919,-489.54852062,0.00017022,2]
[328779273,1717785050929,-433.9696054,0.00017022,2]
[328779274,1717785050938,-634.56885852,0.00017022,2]
[328779275,1717785050948,-842.55620938,0.00017022,2]
[328779276,1717785050958,-172.71594566,0.00017022,2]
[328779277,1717785050971,-121.37834396,0.00017022,2]
[328779278,1717785050980,-237.0840417,0.00017022,2]
[328779279,1717785050990,-2608.5335196,0.00017022,2]
[328779280,1717785051000,-41.10336496,0.00029863,4]
[328779281,1717785051009,-500.0,0.00029863,4]
[328779282,1717785051019,-500.0,0.00029863,4]
[328779283,1717785051029,-190.79438235,0.00029863,4]
[328779284,1717785051039,-500.0,0.00029863,4]
[328779285,1717785051049,-502.67919158,0.00029863,4]
[328779286,1717785051059,-318.1998709,0.00029863,4]
[328779287,1717785051072,-181.8001291,0.00029863,4]
[328779288,1717785051083,-500.0,0.00029863,4]
[328779289,1717785051092,-500.0,0.00029863,4]
[328779290,1717785051102,-500.0,0.00029863,4]
[328779291,1717785051113,-500.0,0.00029863,4]
[328779292,1717785051122,-500.0,0.00029863,4]
[328779293,1717785051137,-500.0,0.00029863,4]
[328779294,1717785051253,-500.0,0.00029863,4]
[328779295,1717785051264,-418.13382216,0.00029863,4]
[328779296,1717785051275,-500.0,0.00029863,4]
[328779297,1717785051285,-500.0,0.00029863,4]
[328779298,1717785051295,-500.0,0.00029863,4]
[328779299,1717785051305,-500.0,0.00029863,4]
[328779300,1717785051315,-500.0,0.00029863,4]
[328779301,1717785051325,-263.0,0.00029863,4]
[328779302,1717785051338,-500.0,0.00029863,4]
[328779303,1717785051347,-500.0,0.00029863,4]
[328779304,1717785051358,-511.68666868,0.00029863,4]
[328779305,1717785051376,-500.0,0.00029863,4]
[328779306,1717785051391,-215.45747535,0.00029863,4]
[328779307,1717785051401,-500.0,0.00029863,4]
[328779308,1717785051414,-500.0,0.00029863,4]
[328779309,1717785051423,-500.0,0.00029863,4]
[328779310,1717785051433,-500.0,0.00029863,4]
[328779311,1717785051442,-648.64,0.00029863,4]
[328779312,1717785051452,-500.0,0.00029863,4]
[328779313,1717785051463,-500.0,0.00029863,4]
[328779314,1717785051473,-500.0,0.00029863,4]
[328779315,1717785051483,-500.0,0.00029863,4]
[328779316,1717785051492,-500.0,0.00029863,4]
[328779317,1717785051502,-500.0,0.00029863,4]
[328779318,1717785051512,-500.0,0.00029863,4]
[328779319,1717785051521,-530.89427781,0.00029863,4]
[328779320,1717785051531,-500.0,0.00029863,4]
[328779321,1717785051541,-500.0,0.00029863,4]
[328779322,1717785051550,-500.0,0.00029863,4]
[328779323,1717785051561,-500.0,0.00029863,4]
[328779324,1717785051571,-614.97633566,0.00029863,4]
[328779325,1717785051581,-500.0,0.00029863,4]
[328779326,1717785051591,-500.0,0.00029863,4]
[328779327,1717785051601,-223.36681428,0.00029863,4]
[328779328,1717785051610,-500.0,0.00029863,4]
[328779329,1717785051620,-500.0,0.00029863,4]
[328779330,1717785051633,-500.0,0.00029863,4]
[328779331,1717785051643,-528.55822396,0.00029863,4]
[328779332,1717785051652,-500.0,0.00029863,4]
[328779333,1717785051662,-500.0,0.00029863,4]
[328779334,1717785051672,-500.0,0.00029863,4]
[328779335,1717785051682,-500.0,0.00029863,4]
[328779336,1717785051692,-500.0,0.00029863,4]
[328779337,1717785051702,-500.0,0.00029863,4]
[328779338,1717785051711,-500.0,0.00029863,4]
[328779339,1717785051721,-500.0,0.00029863,4]
[328779340,1717785051731,-226.6,0.00029863,4]
[328779341,1717785051740,-500.0,0.00029863,4]
[328779342,1717785051750,-500.0,0.00029863,4]
[328779343,1717785051760,-500.0,0.00029863,4]
[328779344,1717785051769,-500.0,0.00029863,4]
[328779345,1717785051779,-500.0,0.00029863,4]
[328779346,1717785051789,-500.0,0.00029863,4]
[328779347,1717785051799,-500.0,0.00029863,4]
[328779348,1717785051809,-500.0,0.00029863,4]
[328779349,1717785051818,-500.0,0.00029863,4]
[328779350,1717785051828,-508.6818999,0.00029863,4]
[328779351,1717785051838,-500.0,0.00029863,4]
[328779352,1717785051848,-500.0,0.00029863,4]
[328779353,1717785051858,-500.0,0.00029863,4]
[328779354,1717785051868,-513.89121311,0.00029863,4]
[328779355,1717785051881,-500.0,0.00029863,4]
[328779356,1717785051891,-500.0,0.00029863,4]
[328779357,1717785051902,-500.0,0.00029863,4]
[328779358,1717785051912,-502.85216481,0.00029863,4]
[328779359,1717785051922,-508.89867814,0.00029863,4]
[328779360,1717785051931,-500.0,0.00029863,4]
[328779361,1717785051940,-500.0,0.00029863,4]
[328779362,1717785051950,-505.07657684,0.00029863,4]
[328779363,1717785051960,-500.0,0.00029863,4]
[328779364,1717785051969,-500.0,0.00029863,4]
[328779365,1717785051979,-500.0,0.00029863,4]
[328779366,1717785051989,-205.87304627,0.00029863,4]
[328779367,1717785052011,-294.12695373,0.00029863,4]
[328779368,1717785052021,-506.04832637,0.00029863,4]
[328779369,1717785052031,-500.0,0.00029863,4]
[328779370,1717785052041,-500.0,0.00029863,4]
[328779371,1717785052051,-500.0,0.00029863,4]
[328779372,1717785052061,-500.0,0.00029863,4]
[328779373,1717785052071,-500.0,0.00029863,4]
[328779374,1717785052080,-154.87846307,0.00029863,4]
[328779375,1717785052094,-345.12153693,0.00029863,4]
[328779376,1717785052104,-500.0,0.00029863,4]
[328779377,1717785052114,-500.0,0.00029863,4]
[328779378,1717785052123,-500.0,0.00029863,4]
[328779379,1717785052136,-500.0,0.00029863,4]
[328779380,1717785052145,-500.0,0.00029863,4]
[328779381,1717785052155,-500.0,0.00029863,4]
[328779382,1717785052165,-537.35,0.00029863,4]
[328779383,1717785052174,-500.0,0.00029863,4]
[328779384,1717785052184,-500.0,0.00029863,4]
[328779385,1717785052193,-500.0,0.00029863,4]
[328779386,1717785052202,-501.44896078,0.00029863,4]
[328779387,1717785052212,-500.0,0.00029863,4]
[328779388,1717785052221,-500.0,0.00029863,4]
[328779389,1717785052230,-500.0,0.00029863,4]
[328779390,1717785052240,-500.0,0.00029863,4]
[328779391,1717785052250,-498.20241213,0.00029863,4]
[328779392,1717785052259,-500.0,0.00029863,4]
[328779393,1717785052269,-500.0,0.00029863,4]
[328779394,1717785052278,-500.0,0.00029863,4]
[328779395,1717785052287,-530.15866457,0.00029863,4]
[328779396,1717785052297,-500.0,0.00029863,4]
[328779397,1717785052306,-500.0,0.00029863,4]
[328779398,1717785052316,-500.0,0.00029863,4]
[328779399,1717785052325,-500.0,0.00029863,4]
[328779400,1717785052335,-500.0,0.00029863,4]
[328779401,1717785052344,-500.0,0.00029863,4]
[328779402,1717785052354,-500.0,0.00029863,4]
[328779403,1717785052368,-500.0,0.00029863,4]
[328779404,1717785052382,-506.97984934,0.00029863,4]
[328779405,1717785052392,-504.42291136,0.00029863,4]
[328779406,1717785052404,-500.0,0.00029863,4]
[328779407,1717785052415,-500.0,0.00029863,4]
[328779408,1717785052425,-500.0,0.00029863,4]
[328779409,1717785052436,-500.0,0.00029863,4]
[328779410,1717785052446,-500.0,0.00029863,4]
[328779411,1717785052455,-500.0,0.00029863,4]
[328779412,1717785052465,-467.17606007,0.00029863,4]
[328779413,1717785052475,-500.0,0.00029863,4]
[328779414,1717785052484,-500.0,0.00029863,4]
[328779415,1717785052494,-500.0,0.00029863,4]
[328779416,1717785052504,-297.56851401,0.00029863,4]
[328779417,1717785052513,-500.0,0.00029863,4]
[328779418,1717785052523,-500.0,0.00029863,4]
[328779419,1717785052532,-500.0,0.00029863,4]
[328779420,1717785052541,-500.0,0.00029863,4]
[328779421,1717785052550,-500.0,0.00029863,4]
[328779422,1717785052561,-500.0,0.00029863,4]
[328779423,1717785052571,-500.0,0.00029863,4]
[328779424,1717785052581,-500.0,0.00029863,4]
[328779425,1717785052590,-500.0,0.00029863,4]
[328779426,1717785052600,-500.0,0.00029863,4]
[328779427,1717785052609,-500.0,0.00029863,4]
[328779428,1717785052618,-500.0,0.00029863,4]
[328779429,1717785052628,-500.0,0.00029863,4]
[328779430,1717785052640,-500.0,0.00029863,4]
[328779431,1717785052652,-500.0,0.00029863,4]
[328779432,1717785052661,-553.94,0.00029863,4]
[328779433,1717785052671,-500.0,0.00029863,4]
[328779434,1717785052680,-500.0,0.00029863,4]
[328779435,1717785052689,-501.74669473,0.00029863,4]
[328779436,1717785052699,-505.3724767,0.00029863,4]
[328779437,1717785052709,-500.0,0.00029863,4]
[328779438,1717785052719,-500.0,0.00029863,4]
[328779439,1717785052730,-500.0,0.00029863,4]
[328779440,1717785052740,-524.8839181,0.00029863,4]
[328779441,1717785052750,-500.0,0.00029863,4]
[328779442,1717785052760,-500.0,0.00029863,4]
[328779443,1717785052770,-500.0,0.00029863,4]
[328779444,1717785052780,-500.0,0.00029863,4]
[328779445,1717785052789,-500.0,0.00029863,4]
[328779446,1717785052799,-500.0,0.00029863,4]
[328779447,1717785052808,-500.0,0.00029863,4]
[328779448,1717785052817,-500.0,0.00029863,4]
[328779449,1717785052827,-500.0,0.00029863,4]
[328779450,1717785052837,-500.0,0.00029863,4]
[328779451,1717785052846,-290.06243101,0.00029863,4]
[328779452,1717785052856,-500.0,0.00029863,4]
[328779453,1717785052866,-500.0,0.00029863,4]
[328779454,1717785052877,-500.0,0.00029863,4]
[328779455,1717785052894,-500.0,0.00029863,4]
[328779456,1717785052903,-500.0,0.00029863,4]
[328779457,1717785052914,-500.0,0.00029863,4]
[328779458,1717785052923,-504.52955916,0.00029863,4]
[328779459,1717785052933,-500.0,0.00029863,4]
[328779460,1717785052943,-500.0,0.00029863,4]
[328779461,1717785052954,-500.0,0.00029863,4]
[328779462,1717785052964,-500.0,0.00029863,4]
[328779463,1717785052973,-500.0,0.00029863,4]
[328779464,1717785052982,-500.0,0.00029863,4]
[328779465,1717785052991,-500.0,0.00029863,4]
[328779466,1717785053000,-500.0,0.00029863,4]
[328779467,1717785053010,-500.0,0.00029863,4]
[328779468,1717785053019,-500.0,0.00029863,4]
[328779469,1717785053028,-500.0,0.00029863,4]
[328779470,1717785053038,-500.0,0.00029863,4]
[328779471,1717785053047,-500.0,0.00029863,4]
[328779472,1717785053057,-500.0,0.00029863,4]
[328779473,1717785053067,-500.0,0.00029863,4]
[328779474,1717785053175,-500.0,0.00029863,4]
[328779475,1717785053184,-500.0,0.00029863,4]
[328779476,1717785053193,-500.0,0.00029863,4]
[328779477,1717785053203,-500.0,0.00029863,4]
[328779478,1717785053212,-500.0,0.00029863,4]
[328779479,1717785053222,-500.0,0.00029863,4]
[328779480,1717785053231,-500.0,0.00029863,4]
[328779481,1717785053240,-500.0,0.00029863,4]
[328779482,1717785053250,-500.0,0.00029863,4]
[328779483,1717785053260,-500.0,0.00029863,4]
[328779484,1717785053270,-500.0,0.00029863,4]
[328779485,1717785053279,-500.0,0.00029863,4]
[328779486,1717785053289,-500.0,0.00029863,4]
[328779487,1717785053298,-500.0,0.00029863,4]
[328779488,1717785053309,-500.0,0.00029863,4]
[328779489,1717785053319,-500.0,0.00029863,4]
[328779490,1717785053328,-500.0,0.00029863,4]
[328779491,1717785053338,-500.0,0.00029863,4]
[328779492,1717785053348,-500.0,0.00029863,4]
[328779493,1717785053357,-500.0,0.00029863,4]
[328779494,1717785053370,-500.0,0.00029863,4]
[328779495,1717785053381,-500.0,0.00029863,4]
[328779496,1717785053395,-500.0,0.00029863,4]
[328779497,1717785053407,-500.0,0.00029863,4]
[328779498,1717785053417,-500.0,0.00029863,4]
[328779499,1717785053426,-500.0,0.00029863,4]
[328779500,1717785053435,-500.0,0.00029863,4]
[328779501,1717785053445,-555.00264691,0.00029863,4]
[328779502,1717785053455,-500.0,0.00029863,4]
[328779503,1717785053465,-500.0,0.00029863,4]
[328779504,1717785053475,-500.0,0.00029863,4]
[328779505,1717785053484,-500.0,0.00029863,4]
[328779506,1717785053494,-500.0,0.00029863,4]
[328779507,1717785053505,-500.0,0.00029863,4]
[328779508,1717785053515,-500.0,0.00029863,4]
[328779509,1717785053525,-500.0,0.00029863,4]
[328779510,1717785053534,-158.14,0.00029863,4]
[328779511,1717785053544,-387.63,0.00029863,4]
[328779512,1717785053553,-511.11426647,0.00029863,4]
[328779513,1717785053563,-403.97979197,0.00029863,4]
[328779514,1717785053574,-500.0,0.00029863,4]
[328779515,1717785053583,-500.0,0.00029863,4]
[328779516,1717785053593,-500.0,0.00029863,4]
[328779517,1717785053604,-501.41027917,0.00029863,4]
[328779518,1717785053615,-610.27,0.00029863,4]
[328779519,1717785053624,-501.59327483,0.00029863,4]
[328779520,1717785053640,-500.0,0.00029863,4]
[328779521,1717785053650,-500.0,0.00029863,4]
[328779522,1717785053660,-500.0,0.00029863,4]
[328779523,1717785053673,-500.0,0.00029863,4]
[328779524,1717785053684,-502.60351404,0.00029863,4]
[328779525,1717785053694,-500.0,0.00029863,4]
[328779526,1717785053704,-500.0,0.00029863,4]
[328779527,1717785053713,-500.0,0.00029863,4]
[328779528,1717785053723,-522.91114096,0.00029863,4]
[328779529,1717785053732,-500.0,0.00029863,4]
[328779530,1717785053742,-257.14974073,0.00029863,4]
[328779531,1717785053751,-500.0,0.00029863,4]
[328779532,1717785053760,-500.0,0.00029863,4]
[328779533,1717785053770,-500.0,0.00029863,4]
[328779534,1717785053780,-500.0,0.00029863,4]
[328779535,1717785053790,-500.0,0.00029863,4]
[328779536,1717785053800,-500.0,0.00029863,4]
[328779537,1717785053809,-500.0,0.00029863,4]
[328779538,1717785053818,-500.0,0.00029863,4]
[328779539,1717785053828,-500.0,0.00029863,4]
[328779540,1717785053838,-500.0,0.00029863,4]
[328779541,1717785053848,-500.0,0.00029863,4]
[328779542,1717785053857,-500.0,0.00029863,4]
[328779543,1717785053867,-500.0,0.00029863,4]
[328779544,1717785053877,-614.92099686,0.00029863,4]
[328779545,1717785053894,-500.0,0.00029863,4]
[328779546,1717785053904,-500.0,0.00029863,4]
[328779547,1717785053914,-500.0,0.00029863,4]
[328779548,1717785053923,-500.0,0.00029863,4]
[328779549,1717785053933,-500.0,0.00029863,4]
[328779550,1717785053942,-500.0,0.00029863,4]
[328779551,1717785053952,-500.0,0.00029863,4]
[328779552,1717785053961,-500.0,0.00029863,4]
[328779553,1717785053971,-500.0,0.00029863,4]
[328779554,1717785053981,-500.0,0.00029863,4]
[328779555,1717785053990,-500.0,0.00029863,4]
[328779556,1717785053999,-500.0,0.00029863,4]
[328779557,1717785054009,-500.0,0.00029863,4]
[328779558,1717785054018,-500.0,0.00029863,4]
[328779559,1717785054028,-500.0,0.00029863,4]
[328779560,1717785054037,-500.0,0.00029863,4]
[328779561,1717785054047,-500.0,0.00029863,4]
[328779562,1717785054057,-500.0,0.00029863,4]
[328779563,1717785054067,-500.0,0.00029863,4]
[328779564,1717785054077,-500.0,0.00029863,4]
[328779565,1717785054086,-500.0,0.00029863,4]
[328779566,1717785054096,-500.0,0.00029863,4]
[328779567,1717785054105,-500.0,0.00029863,4]
[328779568,1717785054115,-500.0,0.00029863,4]
[328779569,1717785054124,-500.0,0.00029863,4]
[328779570,1717785054139,-500.0,0.00029863,4]
[328779571,1717785054149,-500.0,0.00029863,4]
[328779572,1717785054158,-500.0,0.00029863,4]
[328779573,1717785054168,-500.0,0.00029863,4]
[328779574,1717785054178,-312.63,0.00029863,4]
[328779575,1717785054188,-500.0,0.00029863,4]
[328779576,1717785054197,-500.0,0.00029863,4]
[328779577,1717785054206,-500.0,0.00029863,4]
[328779578,1717785054216,-533.58756455,0.00029863,4]
[328779579,1717785054226,-500.0,0.00029863,4]
[328779580,1717785054235,-372.64286709,0.00029863,4]
[328779581,1717785054245,-500.0,0.00029863,4]
[328779582,1717785054254,-500.0,0.00029863,4]
[328779583,1717785054264,-500.0,0.00029863,4]
[328779584,1717785054274,-500.0,0.00029863,4]
[328779585,1717785054283,-500.0,0.00029863,4]
[328779586,1717785054293,-500.0,0.00029863,4]
[328779587,1717785054303,-500.0,0.00029863,4]
[328779588,1717785054312,-500.0,0.00029863,4]
[328779589,1717785054322,-502.3125298,0.00029863,4]